Cogmind - Beta 14 @@@ ROGUE MODE // 2025.03.07 @ 20:58:20 Player: mix Result: Destroyed by ME-17R(R) with Subdweller Beam Cannon Performance ------------- Evolutions (0) 0 Regions Visited (3) 600 Robots Destroyed (32) 160 Value Destroyed (620) 620 Prototype IDs (1) 20 Alien Tech Used (0) 0 Bonus (0) 0 TOTAL SCORE: 1400 Bonus ------- None Cogmind --------- Core Integrity 0/250 Matter 245/300 Energy 100/100 System Corruption 0% Temperature Cool (9) Movement Core (450) Ox8 Location -10/Subcaves Parts ------- > --- POWER (1) -------- (None) > --- PROPULSION (2) --- Combat Airjet > --- UTILITY (2) ------ Heat Sink Large Storage Unit > --- WEAPON (2) ------- Medium Laser Battle Cannon > --- INVENTORY (15) --- Huge Storage Unit Sensor Drone Bay (19/20) Small Laser Battle Cannon Peak State ------------ > --- POWER ------------ Light Nuclear Core > --- PROPULSION ------- Light Treads Combat Airjet > --- UTILITY ---------- Large Storage Unit Sensor Drone Bay > --- WEAPON ----------- Medium Laser Medium Laser > --- INVENTORY -------- Huge Storage Unit [Rating: 20] Favorites ----------- Power Light Nuclear Core Engine Ion Engine Power Core Light Nuclear Core Propulsion Light Treads Treads Light Treads Hover Unit Combat Airjet Utility Large Storage Unit Device Improved Terrain Scanner Storage Large Storage Unit Weapon Medium Laser Energy Gun Medium Laser Ballistic Gun Subdweller Machine Gun Ballistic Cannon Battle Cannon Build | -11 -10 -10 -10 ------- Run | Yrd Mat Min Sub Slots Evolved . | . . . . Power . | . . . . Propulsion . | . . . . Utility . | . . . . Weapon . | . . . . Parts Attached 20 | 6 2 8 4 Power 3 | 1 . 2 . Engine 1 | 1 . . . Core 2 | . . 2 . Reactor . | . . . . Propulsion 4 | 2 . 2 . Treads 3 | 2 . 1 . Leg . | . . . . Wheel . | . . . . Hover 1 | . . 1 . Flight . | . . . . Utility 6 | 1 1 3 1 Device 4 | . . 3 1 Storage 2 | 1 1 . . Processor . | . . . . Hackware . | . . . . Protection . | . . . . Artifact . | . . . . Weapon 7 | 2 1 1 3 Energy Gun 4 | 1 1 1 1 Energy Cannon . | . . . . Ballistic Gun 2 | 1 . . 1 Ballistic Cannon 1 | . . . 1 Launcher . | . . . . Special Weapon . | . . . . Impact Weapon . | . . . . Slashing Weapon . | . . . . Piercing Weapon . | . . . . Special Melee Weapon . | . . . . Unidentified Prototypes 1 | . . 1 . Parts Lost 9 | . . 5 4 Power 3 | . . 2 1 Propulsion 3 | . . 2 1 Utility 1 | . . . 1 Weapon 2 | . . 1 1 Highest Loss Streak 3 | . . 3 2 To Critical Strikes 1 | . . . 1 Average Slot Usage (%) 94 | . 85 98 84 Engine 3 | . 14 3 . Core 7 | . . 10 3 Treads 17 | . 28 16 14 Hover 10 | . . 10 14 Device 11 | . . 13 9 Storage 14 | . 14 14 14 Energy Gun 26 | . 27 27 21 Peak Build Rating 20 | 6 7 20 17 Average Rating 14 | 4 6 15 13 On Entrance 7 | . 6 6 16 Naked Turns . | . . . . Heaviest Build 43 | 14 29 43 31 Greatest Support 40 | 40 40 40 20 Greatest Overweight (x) 12 | . . 12 1 Average Overweight (x) 1 | . . 1 1 Largest Inventory Capacity 15 | 8 15 15 15 Average Capacity 14 | 7 11 15 15 Most Carried 5 | 3 3 5 5 Average Carried 3 | . 1 3 4 Final Capacity 15 | 8 15 15 15 Final Carried 4 | . 3 4 4 Class Distribution -------------------- 53% | Mutant 46% | Scavenger-Mutant Dominant Class ---------------- Mutant | -10/Materials Scavenger-Mutant | -10/Mines Mutant | -10/Subcaves Resources | -11 -10 -10 -10 ----------- Run | Yrd Mat Min Sub Matter Collected 409 | 180 98 85 46 Remotely . | . . . . Salvage Created 973 | . 176 618 179 Parts 63 | . 14 38 11 Haulers Intercepted 1 | . 1 . . Recyclers Shooed 1 | . 1 . . Parts Field Recycled . | . . . . Retrieved Matter . | . . . . Parts Self-Destructed 7 | . . . 7 Prevented . | . . . . Kills | -11 -10 -10 -10 ------- Run | Yrd Mat Min Sub Combat Hostiles Destroyed 21 | . 2 13 6 Guns 19 | . 2 12 5 Cannons 1 | . . . 1 Classes Destroyed 11 | . 4 5 2 Worker 3 | . 1 2 . Builder 2 | . 1 1 . Tunneler 5 | . . 5 . Hauler 1 | . 1 . . Recycler 1 | . . 1 . Swarmer 9 | . . 6 3 Grunt 6 | . 2 4 . Sentry 1 | . . . 1 Demolisher 2 | . . 2 . Subdweller 2 | . . . 2 Assembled 1 | . . 1 . Best Kill Streak 3 | . 2 3 3 Combat Bots Only 3 | . 2 3 3 Max Kills in Single Turn 2 | . 1 2 1 Gunslinging . | . . . . Exploded . | . . . . Melee . | . . . . Uniques/NPCs Destroyed . | . . . . Combat | -11 -10 -10 -10 -------- Run | Yrd Mat Min Sub Hostile Shots Fired 114 | . 11 55 48 Missed 24 | . 5 10 9 Damage Taken 1316 | . 69 761 486 Core 257 | . 27 121 109 Absorbed by Shields . | . . . . Core Remaining (%) 100 | 100 . . . Volleys Fired 94 | . 18 51 25 Largest 2 | . 2 2 2 Hottest 100 | . 100 100 90 Shots Fired 175 | . 36 99 40 Gun 162 | . 36 99 27 Cannon 13 | . . . 13 Launcher . | . . . . Special . | . . . . Kinetic 18 | . 1 . 17 Thermal 157 | . 35 99 23 Explosive . | . . . . Electromagnetic . | . . . . Robot Hit Streak 13 | . 7 13 9 Robot Miss Streak 5 | . 5 4 2 Penetration Max . | . . . . Secondary Targets 2 | . . 2 . Max Gunslinging Chain 1 | . . 1 . Shots Hit Robots 106 | . 23 63 20 Core Hits 50 | . 10 31 9 Critical Kills . | . . . . Critical Parts Destroyed . | . . . . Critical Strikes 10 | . 3 5 2 Burn 10 | . 3 5 2 Melee Attacks . | . . . . Impact . | . . . . Slashing . | . . . . Piercing . | . . . . Sneak Attacks . | . . . . Combat Hostiles . | . . . . Follow-up Attacks . | . . . . Damage Inflicted 1424 | . 293 803 328 Guns 1340 | . 293 803 244 Cannons 84 | . . . 84 Explosions . | . . . . Melee . | . . . . Ramming . | . . . . Kinetic 165 | . . . 165 Thermal 1259 | . 293 803 163 Explosive . | . . . . Electromagnetic . | . . . . Impact . | . . . . Slashing . | . . . . Piercing . | . . . . Highest Corruption . | . . . . Average Corruption . | . . . . Corruption Purged . | . . . . Corruption Blocked . | . . . . Overload Shots . | . . . . Overflow Damage . | . . . . Projectiles . | . . . . Explosions . | . . . . Melee . | . . . . Knockbacks . | . . . . Impact . | . . . . Kinetic . | . . . . Secondary . | . . . . Self-Inflicted Damage . | . . . . Shots . | . . . . Rammed . | . . . . Targets Rammed . | . . . . Kicked . | . . . . Crushed . | . . . . Highest Temperature 346 | . 244 346 . Average Temperature 94 | . 68 105 . Received Heat Transfer 231 | . 66 93 72 Effects 2 | . . 2 . Energy Bleed 1 | . . 1 . Short Circuit 1 | . . 1 . Siege Activations . | . . . . Robots Corrupted . | . . . . Combat Hostiles . | . . . . Parts Fried . | . . . . Impact Corruptions . | . . . . Robots Melted 1 | . . 1 . Combat Hostiles 1 | . . 1 . Parts Melted 6 | . . 5 1 Heat Transferred 4371 | . 1110 2679 582 Parts Sabotaged . | . . . . Parts Stolen . | . . . . Parts Stripped . | . . . . Power Chain Reactions . | . . . . Alert | -11 -10 -10 -10 ------- Run | Yrd Mat Min Sub Peak Influence 160 | . 97 160 . Initial 1 | . . 1 . Average 14 | . 23 13 . Maximum Alert Level . | . . . . Low Security (%) 100 | 100 100 100 . Level 1 . | . . . . Level 2 . | . . . . Level 3 . | . . . . Level 4 . | . . . . Level 5 . | . . . . High Security . | . . . . Max Security . | . . . . Squads Dispatched 1 | . 1 . . Investigation . | . . . . Extermination . | . . . . Reinforcement 1 | . 1 . . Assault . | . . . . Garrison . | . . . . Intercept . | . . . . Searches Triggered . | . . . . Construction Impeded . | . . . . Haulers Reinforced . | . . . . Active Scanning Responses . | . . . . Cargo Convoy Interrupts . | . . . . Stealth | -11 -10 -10 -10 --------- Run | Yrd Mat Min Sub Distress Signals 1 | . 1 . . Communications Jammed . | . . . . Distress Signals . | . . . . Times Spotted 44 | . 11 25 8 Peak Tracking Total 17 | . 7 17 3 Tactical Retreats 3 | . . 2 1 Traps | -11 -10 -10 -10 ------- Run | Yrd Mat Min Sub Traps Triggered . | . . . . Indirectly . | . . . . Trap Hack Attempts . | . . . . Triggered . | . . . . Disarmed . | . . . . Reprogrammed . | . . . . Reused . | . . . . Traps Extracted . | . . . . Installed . | . . . . Triggered . | . . . . Machines | -11 -10 -10 -10 ---------- Run | Yrd Mat Min Sub Machines Disabled . | . . . . Max in Single Turn . | . . . . Machines Repaired . | . . . . Machines Dismantled . | . . . . Machines Sabotaged . | . . . . Overloaded Fab Kills . | . . . . Hacking | -11 -10 -10 -10 --------- Run | Yrd Mat Min Sub Machines Accessed 4 | . 2 1 1 Terminals 2 | . 2 . . Fabricators . | . . . . Repair Stations . | . . . . Recycling Units . | . . . . Scanalyzers . | . . . . Garrison Access . | . . . . Total Hacks 11 | . 6 1 4 Successful 9 | . 4 1 4 Failed 2 | . 2 . . Catastrophic . | . . . . Database Lockouts . | . . . . Manual 6 | . 6 . . Terminals 6 | . 6 . . Fabricators . | . . . . Repair Stations . | . . . . Recycling Units . | . . . . Scanalyzers . | . . . . Garrison Access . | . . . . Terminal Hacks 5 | . . 1 4 Record 4 | . . . 4 Open Door 1 | . . 1 . Fabricator Hacks . | . . . . Repair Station Hacks . | . . . . Recycling Unit Hacks . | . . . . Scanalyzer . | . . . . Garrison Access Hacks . | . . . . Unauthorized Hacks 4 | . 4 . . Terminals 4 | . 4 . . Assimilate 1 | . 1 . . Botnet 2 | . 2 . . Operators 1 | . 1 . . Fabricators . | . . . . Repair Stations . | . . . . Recycling Units . | . . . . Scanalyzers . | . . . . Garrison Access . | . . . . Data Cores Recovered . | . . . . Used . | . . . . Hacking Detections 1 | . 1 . . Full Trace Events 1 | . 1 . . Feedback Events . | . . . . Feedback Blocked . | . . . . Robot Schematics Acquired . | . . . . Robots Built . | . . . . Authchips . | . . . . Time . | . . . . Total Robot Build Rating . | . . . . Part Schematics Acquired . | . . . . Parts Built . | . . . . Authchips . | . . . . Time . | . . . . Total Part Build Rating . | . . . . Parts Repaired . | . . . . Time . | . . . . Parts Recycled . | . . . . Recycled Matter . | . . . . Retrieved Matter . | . . . . Retrieved Components . | . . . . Parts Scanalyzed . | . . . . Part Schematics Acquired . | . . . . Parts Damaged . | . . . . Bothacking | -11 -10 -10 -10 ------------ Run | Yrd Mat Min Sub Used RIF Installer . | . . . . Robots Hacked . | . . . . Non-combat . | . . . . Combat . | . . . . Robot Hacks Applied . | . . . . Relay Couplers Released . | . . . . Fabnet Peak Effective % . | . . . . Robots Rewired . | . . . . Allies Hacked . | . . . . Hacks Repelled . | . . . . Allies | -11 -10 -10 -10 -------- Run | Yrd Mat Min Sub Total Allies . | . . . . Largest Group . | . . . . Highest-Rated Group . | . . . . Highest-Rated Ally . | . . . . Total Orders 20 | . . 20 . EXPLORE 1 | . . 1 . RETURN 19 | . . 19 . Ally Attacks . | . . . . Total Damage . | . . . . Kills . | . . . . Allies Corrupted . | . . . . Allies Melted . | . . . . Intel | -11 -10 -10 -10 ------- Run | Yrd Mat Min Sub Robot Analysis Total . | . . . . Derelict Logs Recovered 2 | . . 1 1 Drone Launches 21 | . . 21 . Drone Recoveries 20 | . . 20 . Exploration | -11 -10 -10 -10 ------------- Run | Yrd Mat Min Sub Turns Passed 5024 | 65 445 3529 985 Spaces Moved 1577 | 38 238 929 372 Core 21 | 7 . 14 . Treads 1556 | 31 238 915 372 Legs . | . . . . Wheels . | . . . . Hover . | . . . . Flight . | . . . . Fastest Speed 50 | 50 160 160 240 Average Speed 236 | 139 160 257 240 Slowest Speed 650 | 160 160 650 240 Overloaded Moves . | . . . . Propulsion Burnouts . | . . . . Robots Hopped . | . . . . Cave-ins Triggered . | . . . . Exploration Rate (%) 42 | 3 35 100 30 Regions Visited 3 Branch Regions 2 Pre-discovered Areas 2 | . . . 2 Known Exits Taken . | . . . . Unknown Exits Taken 3 | 1 1 1 . Scrap Searched 1 | . . 1 . Spaces Dug . | . . . . Terrain Destroyed . | . . . . Melee . | . . . . Projectile . | . . . . AOE . | . . . . Terrain Rammed . | . . . . Walls Destroyed . | . . . . Machines Disabled . | . . . . Actions | -11 -10 -10 -10 --------- Run | Yrd Mat Min Sub Total 2706 | 51 267 1964 424 Wait 992 | . 3 968 21 Move 1574 | 37 237 928 372 Hop . | . . . . Pick Up 22 | 7 5 8 2 Fast Attach . | . . . . Attach 15 | 6 1 6 2 Detach . | . . . . Swap 5 | . 1 2 2 Drop 4 | 1 2 1 . Fire 94 | . 18 51 25 Melee . | . . . . Ram . | . . . . Kick . | . . . . Crush . | . . . . Escape Stasis . | . . . . Rewire . | . . . . Trap . | . . . . Miscellaneous . | . . . . Route ------- -11/Scrapyard -10/Materials -10/Mines (discovered 3 exits: [*Mat x2] / *Sub) -10/Subcaves (discovered 1 exit: [*Mat]) History --------- Turn | Location | Event 32 | -11/Scrapyard | Discovered new exit (range 12) 66 | -11/Scrapyard | Entered Materials 312 | -10/Materials | Build established: Mutant 318 | -10/Materials | Discovered new exit (range 11) 511 | -10/Materials | Entered Mines 514 | -10/Mines | Found the Drone Emporium 521 | -10/Mines | Found Prototype Device 522 | -10/Mines | Identified Sensor Drone Bay 1281 | -10/Mines | Assembled infested the area 1341 | -10/Mines | Core integrity fell below 50% 1367 | -10/Mines | Lost 3 parts (1p2n) 1733 | -10/Mines | Discovered new exit (range 12) 1949 | -10/Mines | A weapon hastily lodged in a ceiling crevice suddenly fell to the ground 2012 | -10/Mines | Discovered new exit (range 6) 2117 | -10/Mines | Learned Materials stockpile data 2122 | -10/Mines | Discovered new exit (range 5) 2234 | -10/Mines | Build established: Scavenger-Mutant 4040 | -10/Mines | Entered Subcaves 4109 | -10/Subcaves | A swath of the cavern ceiling suddenly collapsed 4185 | -10/Subcaves | Learned location of Zion (-7) 4185 | -10/Subcaves | Met a Zionite searching for "candidates" 4362 | -10/Subcaves | Discovered new exit (range 7) 4500 | -10/Subcaves | Visited Clippyterm 4507 | -10/Subcaves | Learned Factory stockpile data 4507 | -10/Subcaves | Learned Factory garrison access intel 4587 | -10/Subcaves | Shifting Twisted Machinery released Battle Cannon 4587 | -10/Subcaves | Shifting Twisted Machinery released Shrapnel Trap 4612 | -10/Subcaves | Build established: Mutant 4719 | -10/Subcaves | Core integrity fell below 20% 5025 | -10/Subcaves | Destroyed by ME-17R(R) with Subdweller Beam Cannon Last Messages --------------- It looks like you don't want to be "it," would you like help? Data stored: Factory garrison access intel. >>Record! "LRC-V1" It looks like you're REDACTED, I can suggest REDACTED and REDACTED. Also definitely avoid REDACTED. Battle Cannon falls loose from the Twisted Machinery. Shrapnel Trap falls loose from the Twisted Machinery. Acquired Battle Cannon. Imp. Terrain Scanner destroyed. Y-45 Defender destroyed. Heat Sink fries itself beyond repair. Lgt. Treads fries itself beyond repair. Acquired 20 matter. Acquired derelict log, extracted data. World map updated: -9/Materials. Lgt. Treads destroyed. Map ----- +----------------------------------------------------+ | ?????????????????????????????????????????????????? | | ??????? ????????????????????????????????????????? | | ?????? ????????????????????????????????????????? | | ??????# ???????????????????????????????????????? | | ?????## ???????????????????????????????????????? | | ?????# #???????????????????????????????????????? | | ?????# ##??????????????????????????????????????? | | ????## ###????????????????????????????????????? | | ?#### ##???????????????????????????????????? | | ?? #???????????????????????????????????? | | ??? #???????????????????????????????????? | | ????# #???????????????????????????????????? | | ????# #???????????????????????????????????? | | ?????# ##???????????####???????????????????? | | #???## ####????????# ##??????????????????? | | ##### #????????# #??????????????????? | | #?????#### "#??????????????????? | | #????##" #??????????????????? | | #### #???##"" ##??????????????????? | | ## ##??## ##?## #???????????????????? | | ### #????# ### ##???????????????????? | | ##?# #????## ##" "## ##????????????????????? | | ##?# #?????# # " "#####?????????????????????? | | #? ##?????# # ""#??????????????????????? | | ########??????# """" "#??????????????????????? | | ### #####?????# ## @#??????????????????????? | | ### ### ###R##??????????????????????? | | #?#######?#R #??????????????????????? | | #????????? ##??????????????????????? | | #????????## #???????????????????????? | | #????????? #???????????????????????? | | ###### #????????? ???????????????????????? | | ##??????? ????????? ???????????????????????? | | #?????????????????? ???????????????????????? | | #????????????????? ???????????????????????? | | #####????????????????? ???????????????????????? | | ##????????????????????# ##???????????????????????? | | ??????????????????????##?????????????????????????? | | ?????????????????????????????????????????????????? | | ?????????????????????????????????????????????????? | | ?????????????????????????????????????????????????? | | ?????????????????????????????????????????????????? | | ?????????????????????????????????????????????????? | | ?????????????????????????????????????????????????? | | ?????????????????????????????????????????????????? | | ?????????????????????????????????????????????????? | | ?????????????????????????????????????????????????? | | ?????????????????????????????????????????????????? | | ?????????????????????????????????????????????????? | | ?????????????????????????????????????????????????? | +----------------------------------------------------+ Best States ------------- Heat Dissipation 35 Energy Generation 14 Energy Capacity 250 Matter Stores 300 Matter Capacity 300 Sight Range 16 Terrain Scan Range 16 Terrain Scan Density 10 Evasion (%) 50 Recoil Reduction 2 Item Schematics ----------------- None Robot Schematics ------------------ None Fabricated ------------ Nothing Alien Tech Used ----------------- None Achievements -------------- None Challenges ------------ None Game ------ Seed BlastImprinterBlaster Manual? 0 Play Time 00:17:05 Cumulative 63.8 hours Start 2025.03.07 @ 17:32:58 End 2025.03.07 @ 20:58:20 Sessions 2 Manual Loads 0 Difficulty Rogue Special Mode None Game No. 92 Rogue 78 Adventurer 14 Explorer 0 Win Type - Total 0 Types 0/0/0/0/0/0/0/0/0 Lore% 22 Gallery% 43 Achievement% 41 Wizard Run 0 Options --------- Layout 1 ASCII 0 Keyboard 0 Movement Mouse Keybinds 0 Fullscreen 1 Font 24/Smallcaps Map View 50x35 Zoom Use 0% Tactical HUD 0 Map Filters NONE Filters NONE Steam 1 RUN: a8e4d893-5a36-439a-b04d-e122151879d5